[Event "Titled Tuesday Blitz January 04 2022"]
[White "Panesar Vedant"]
[Black "Moskalenko, Alexander"]
[WhiteFideId "35033018"]
[BlackFideId "4155351"]
[WhiteElo "1971"]
[BlackElo "2515"]
[Result "0-1"]
[Round "11"]
[TimeControl "180+1"]
[Date "2022.01.04"]
[WhiteClock "0:00:07"]
[BlackClock "0:00:16"]

1. d4 {[%clk 0:03:00]}  Nf6 {[%clk 0:02:53]} 2. c4 {[%clk 0:02:59]}  c5 {[%clk 0:02:53]} 3. d5 {[%clk 0:02:57]}  b5 {[%clk 0:02:53]} 4. cxb5 {[%clk 0:02:57]}  a6 {[%clk 0:02:53]} 5. e3 {[%clk 0:02:53]}  Bb7 {[%clk 0:02:52]} 6. Nc3 {[%clk 0:02:51]}  axb5 {[%clk 0:02:50]} 7. Bxb5 {[%clk 0:02:51]}  Qb6 {[%clk 0:02:50]} 8. Nge2 {[%clk 0:02:45]}  e6 {[%clk 0:02:50]} 9. dxe6 {[%clk 0:02:40]}  fxe6 {[%clk 0:02:50]} 10. O-O {[%clk 0:02:40]}  Be7 {[%clk 0:02:51]} 11. a4 {[%clk 0:02:38]}  O-O {[%clk 0:02:51]} 12. Ng3 {[%clk 0:02:35]}  Nc6 {[%clk 0:02:50]} 13. e4 {[%clk 0:02:32]}  Nd4 {[%clk 0:02:50]} 14. Be3 {[%clk 0:02:32]}  Rad8 {[%clk 0:02:44]} 15. e5 {[%clk 0:02:26]}  Nd5 {[%clk 0:02:42]} 16. Bxd4 {[%clk 0:02:18]}  cxd4 {[%clk 0:02:40]} 17. Nxd5 {[%clk 0:02:18]}  Bxd5 {[%clk 0:02:41]} 18. Qd3 {[%clk 0:02:18]}  d6 {[%clk 0:02:39]} 19. exd6 {[%clk 0:02:11]}  Bxd6 {[%clk 0:02:39]} 20. Ne4 {[%clk 0:02:10]}  Be7 {[%clk 0:02:36]} 21. Rfe1 {[%clk 0:02:09]}  e5 {[%clk 0:02:35]} 22. a5 {[%clk 0:02:06]}  Qg6 {[%clk 0:02:32]} 23. Bc4 {[%clk 0:02:04]}  Bxc4 {[%clk 0:02:26]} 24. Qxc4+ {[%clk 0:02:05]}  Kh8 {[%clk 0:02:27]} 25. a6 {[%clk 0:02:02]}  Bh4 {[%clk 0:02:25]} 26. a7 {[%clk 0:01:59]}  Ra8 {[%clk 0:02:24]} 27. Ng3 {[%clk 0:01:38]}  Bxg3 {[%clk 0:02:16]} 28. hxg3 {[%clk 0:01:39]}  Qf6 {[%clk 0:02:14]} 29. f3 {[%clk 0:01:34]}  Qg5 {[%clk 0:02:11]} 30. Qe2 {[%clk 0:01:32]}  Rfe8 {[%clk 0:02:04]} 31. g4 {[%clk 0:01:32]}  Qe7 {[%clk 0:02:04]} 32. Qb5 {[%clk 0:01:29]}  h6 {[%clk 0:01:55]} 33. b4 {[%clk 0:01:28]}  Red8 {[%clk 0:01:52]} 34. Qc5 {[%clk 0:00:57]}  Qd7 {[%clk 0:01:46]} 35. Rxe5 {[%clk 0:00:52]}  d3 {[%clk 0:01:47]} 36. Ree1 {[%clk 0:00:52]}  d2 {[%clk 0:01:46]} 37. Red1 {[%clk 0:00:52]}  Rdc8 {[%clk 0:01:37]} 38. Qf2 {[%clk 0:00:51]}  Rc2 {[%clk 0:01:38]} 39. b5 {[%clk 0:00:46]}  Qxb5 {[%clk 0:01:26]} 40. Rxd2 {[%clk 0:00:45]}  Qe5 {[%clk 0:01:26]} 41. Rad1 {[%clk 0:00:12]}  Rxd2 {[%clk 0:01:20]} 42. Qxd2 {[%clk 0:00:11]}  Rxa7 {[%clk 0:01:14]} 43. Re1 {[%clk 0:00:10]}  Qc5+ {[%clk 0:01:13]} 44. Qf2 {[%clk 0:00:10]}  Qxf2+ {[%clk 0:01:01]} 45. Kxf2 {[%clk 0:00:11]}  Kh7 {[%clk 0:01:01]} 46. Kg3 {[%clk 0:00:11]}  Kg6 {[%clk 0:01:01]} 47. Re6+ {[%clk 0:00:11]}  Kf7 {[%clk 0:01:01]} 48. Rb6 {[%clk 0:00:12]}  Ra3 {[%clk 0:01:00]} 49. Kf4 {[%clk 0:00:12]}  Ra2 {[%clk 0:01:00]} 50. g3 {[%clk 0:00:12]}  Ra4+ {[%clk 0:01:01]} 51. Ke5 {[%clk 0:00:11]}  Ra5+ {[%clk 0:01:01]} 52. Ke4 {[%clk 0:00:12]}  Ra4+ {[%clk 0:01:01]} 53. Kd5 {[%clk 0:00:11]}  Ra3 {[%clk 0:01:01]} 54. Rb7+ {[%clk 0:00:10]}  Kf6 {[%clk 0:01:00]} 55. Ke4 {[%clk 0:00:08]}  Ra4+ {[%clk 0:00:59]} 56. Ke3 {[%clk 0:00:08]}  Ra3+ {[%clk 0:01:00]} 57. Kf2 {[%clk 0:00:09]}  Ra2+ {[%clk 0:01:00]} 58. Ke3 {[%clk 0:00:08]}  Ra3+ {[%clk 0:01:00]} 59. Kf2 {[%clk 0:00:08]}  Ra2+ {[%clk 0:00:59]} 60. Kg1 {[%clk 0:00:09]}  Rc2 {[%clk 0:00:59]} 61. Kf1 {[%clk 0:00:09]}  Kg6 {[%clk 0:00:58]} 62. Rb5 {[%clk 0:00:09]}  Kf6 {[%clk 0:00:57]} 63. Rd5 {[%clk 0:00:09]}  Rb2 {[%clk 0:00:56]} 64. Rf5+ {[%clk 0:00:09]}  Ke6 {[%clk 0:00:56]} 65. Rf4 {[%clk 0:00:10]}  Ra2 {[%clk 0:00:55]} 66. Re4+ {[%clk 0:00:10]}  Kf6 {[%clk 0:00:56]} 67. Re2 {[%clk 0:00:11]}  Ra1+ {[%clk 0:00:57]} 68. Kf2 {[%clk 0:00:11]}  Ra3 {[%clk 0:00:57]} 69. Re4 {[%clk 0:00:10]}  Ra2+ {[%clk 0:00:57]} 70. Re2 {[%clk 0:00:11]}  Ra3 {[%clk 0:00:58]} 71. f4 {[%clk 0:00:11]}  Rb3 {[%clk 0:00:58]} 72. Re3 {[%clk 0:00:12]}  Rb2+ {[%clk 0:00:58]} 73. Kf3 {[%clk 0:00:13]}  Ra2 {[%clk 0:00:59]} 74. Rb3 {[%clk 0:00:13]}  Ra6 {[%clk 0:00:58]} 75. Rc3 {[%clk 0:00:12]}  Rb6 {[%clk 0:00:58]} 76. Ra3 {[%clk 0:00:12]}  Rc6 {[%clk 0:00:58]} 77. Ke4 {[%clk 0:00:13]}  Rc4+ {[%clk 0:00:58]} 78. Kd5 {[%clk 0:00:12]}  Rc1 {[%clk 0:00:58]} 79. Ra6+ {[%clk 0:00:13]}  Kf7 {[%clk 0:00:58]} 80. Ke5 {[%clk 0:00:12]}  Rc5+ {[%clk 0:00:58]} 81. Kd4 {[%clk 0:00:13]}  Rb5 {[%clk 0:00:59]} 82. Ra7+ {[%clk 0:00:11]}  Kf6 {[%clk 0:00:59]} 83. Ra6+ {[%clk 0:00:12]}  Kf7 {[%clk 0:00:59]} 84. Ra3 {[%clk 0:00:12]}  Kf6 {[%clk 0:00:58]} 85. Ke4 {[%clk 0:00:12]}  Rb4+ {[%clk 0:00:58]} 86. Kd5 {[%clk 0:00:12]}  Rb5+ {[%clk 0:00:58]} 87. Kc4 {[%clk 0:00:12]}  Rb1 {[%clk 0:00:59]} 88. Re3 {[%clk 0:00:12]}  Ra1 {[%clk 0:00:55]} 89. Rb3 {[%clk 0:00:11]}  Rd1 {[%clk 0:00:53]} 90. Rd3 {[%clk 0:00:10]}  Ra1 {[%clk 0:00:53]} 91. Kd5 {[%clk 0:00:10]}  Ra5+ {[%clk 0:00:53]} 92. Ke4 {[%clk 0:00:11]}  Ra4+ {[%clk 0:00:53]} 93. Rd4 {[%clk 0:00:11]}  Ra3 {[%clk 0:00:53]} 94. Rd6+ {[%clk 0:00:11]}  Kf7 {[%clk 0:00:52]} 95. Rd7+ {[%clk 0:00:11]}  Kf6 {[%clk 0:00:52]} 96. Rd6+ {[%clk 0:00:11]}  Ke7 {[%clk 0:00:50]} 97. Rd3 {[%clk 0:00:12]}  Ra4+ {[%clk 0:00:50]} 98. Ke5 {[%clk 0:00:12]}  Ra5+ {[%clk 0:00:49]} 99. Ke4 {[%clk 0:00:11]}  Kf6 {[%clk 0:00:49]} 100. Rd6+ {[%clk 0:00:11]}  Kf7 {[%clk 0:00:48]} 101. Rd7+ {[%clk 0:00:11]}  Kf6 {[%clk 0:00:48]} 102. Rd6+ {[%clk 0:00:11]}  Kf7 {[%clk 0:00:49]} 103. Rd5 {[%clk 0:00:12]}  Ra3 {[%clk 0:00:48]} 104. Rd3 {[%clk 0:00:13]}  Ra5 {[%clk 0:00:48]} 105. f5 {[%clk 0:00:11]}  Ra4+ {[%clk 0:00:46]} 106. Ke5 {[%clk 0:00:12]}  Rxg4 {[%clk 0:00:45]} 107. Rd7+ {[%clk 0:00:10]}  Ke8 {[%clk 0:00:44]} 108. Rd3 {[%clk 0:00:10]}  Kf7 {[%clk 0:00:44]} 109. Rb3 {[%clk 0:00:10]}  h5 {[%clk 0:00:39]} 110. Rb7+ {[%clk 0:00:10]}  Kg8 {[%clk 0:00:39]} 111. Rb3 {[%clk 0:00:08]}  Kh7 {[%clk 0:00:39]} 112. f6 {[%clk 0:00:08]}  Rg5+ {[%clk 0:00:40]} 113. Ke6 {[%clk 0:00:08]}  Rg6 {[%clk 0:00:40]} 114. Rf3 {[%clk 0:00:08]}  gxf6 {[%clk 0:00:40]} 115. Rxf6 {[%clk 0:00:07]}  Rxg3 {[%clk 0:00:40]} 116. Ke5 {[%clk 0:00:04]}  Kg7 {[%clk 0:00:30]} 117. Rf1 {[%clk 0:00:04]}  Kg6 {[%clk 0:00:30]} 118. Kf4 {[%clk 0:00:04]}  h4 {[%clk 0:00:29]} 119. Rh1 {[%clk 0:00:04]}  Kh5 {[%clk 0:00:29]} 120. Re1 {[%clk 0:00:03]}  Rc3 {[%clk 0:00:28]} 121. Rf1 {[%clk 0:00:02]}  h3 {[%clk 0:00:27]} 122. Rg1 {[%clk 0:00:02]}  h2 {[%clk 0:00:21]} 123. Rh1 {[%clk 0:00:02]}  Rh3 {[%clk 0:00:22]} 124. Kf5 {[%clk 0:00:01]}  Rf3+ {[%clk 0:00:12]} 125. Ke4 {[%clk 0:00:02]}  Rh3 {[%clk 0:00:13]} 126. Kf4 {[%clk 0:00:02]}  Kh4 {[%clk 0:00:13]} 127. Kf5 {[%clk 0:00:02]}  Kg3 {[%clk 0:00:13]} 128. Kg5 {[%clk 0:00:02]}  Kg2 {[%clk 0:00:13]} 129. Ra1 {[%clk 0:00:02]}  h1=Q {[%clk 0:00:13]} 130. Ra2+ {[%clk 0:00:03]}  Kf1 {[%clk 0:00:13]} 131. Ra1+ {[%clk 0:00:03]}  Ke2 {[%clk 0:00:14]} 132. Ra2+ {[%clk 0:00:04]}  Kd3 {[%clk 0:00:14]} 133. Kg4 {[%clk 0:00:04]}  Qf3+ {[%clk 0:00:13]} 134. Kg5 {[%clk 0:00:04]}  Rh5+ {[%clk 0:00:14]} 135. Kg6 {[%clk 0:00:05]}  Qf5+ {[%clk 0:00:15]} 136. Kg7 {[%clk 0:00:06]}  Rh7+ {[%clk 0:00:16]} 137. Kg8 {[%clk 0:00:07]}  Qf7# {[%clk 0:00:16]} 0-1


[Site "https://www.chess.com"]

[Event "Titled Tuesday Blitz January 04 2022"]
[White "Pranav, V"]
[Black "Grischuk, Alexander"]
[WhiteFideId "25060783"]
[BlackFideId "4126025"]
[WhiteElo "2349"]
[BlackElo "2762"]
[Result "1-0"]
[Round "11"]
[TimeControl "180+1"]
[Date "2022.01.04"]
[WhiteClock "0:00:15"]
[BlackClock "0:00:02"]

1. e4 {[%clk 0:03:00]}  c6 {[%clk 0:02:56]} 2. d4 {[%clk 0:02:59]}  d5 {[%clk 0:02:56]} 3. e5 {[%clk 0:02:59]}  Bf5 {[%clk 0:02:55]} 4. Nf3 {[%clk 0:03:00]}  e6 {[%clk 0:02:56]} 5. Be2 {[%clk 0:03:00]}  Ne7 {[%clk 0:02:56]} 6. c3 {[%clk 0:02:59]}  h6 {[%clk 0:02:54]} 7. O-O {[%clk 0:02:59]}  Nd7 {[%clk 0:02:55]} 8. Na3 {[%clk 0:02:59]}  a6 {[%clk 0:02:50]} 9. Nc2 {[%clk 0:02:58]}  c5 {[%clk 0:02:50]} 10. Ne3 {[%clk 0:02:52]}  Be4 {[%clk 0:02:48]} 11. dxc5 {[%clk 0:02:50]}  Nxc5 {[%clk 0:02:44]} 12. Nd4 {[%clk 0:02:49]}  Nc6 {[%clk 0:02:42]} 13. f4 {[%clk 0:02:46]}  Be7 {[%clk 0:02:36]} 14. b4 {[%clk 0:02:38]}  Nd7 {[%clk 0:02:34]} 15. a3 {[%clk 0:02:38]}  O-O {[%clk 0:02:29]} 16. Bd3 {[%clk 0:02:29]}  Bxd3 {[%clk 0:02:25]} 17. Qxd3 {[%clk 0:02:27]}  Rc8 {[%clk 0:02:25]} 18. Ng4 {[%clk 0:02:23]}  Nxd4 {[%clk 0:02:11]} 19. cxd4 {[%clk 0:02:21]}  f5 {[%clk 0:02:12]} 20. Ne3 {[%clk 0:02:13]}  Nb6 {[%clk 0:02:10]} 21. g4 {[%clk 0:02:10]}  Nc4 {[%clk 0:02:06]} 22. Nd1 {[%clk 0:01:53]}  Qe8 {[%clk 0:01:58]} 23. gxf5 {[%clk 0:01:51]}  Rxf5 {[%clk 0:01:58]} 24. Kh1 {[%clk 0:01:45]}  Qh5 {[%clk 0:01:54]} 25. Ne3 {[%clk 0:01:27]}  Nxe3 {[%clk 0:01:29]} 26. Bxe3 {[%clk 0:01:28]}  Rcf8 {[%clk 0:01:26]} 27. Ra2 {[%clk 0:01:25]}  Kh8 {[%clk 0:01:16]} 28. Raf2 {[%clk 0:01:22]}  Bh4 {[%clk 0:01:15]} 29. Rg2 {[%clk 0:01:17]}  g5 {[%clk 0:01:10]} 30. Bd2 {[%clk 0:01:17]}  gxf4 {[%clk 0:01:07]} 31. Qh3 {[%clk 0:01:15]}  f3 {[%clk 0:00:26]} 32. Rg4 {[%clk 0:01:13]}  Bd8 {[%clk 0:00:25]} 33. Rxf3 {[%clk 0:00:38]}  Qxh3 {[%clk 0:00:14]} 34. Rxh3 {[%clk 0:00:39]}  h5 {[%clk 0:00:10]} 35. Rg6 {[%clk 0:00:33]}  Rf1+ {[%clk 0:00:06]} 36. Rg1 {[%clk 0:00:32]}  h4 {[%clk 0:00:05]} 37. Be3 {[%clk 0:00:22]}  Kh7 {[%clk 0:00:03]} 38. Kg2 {[%clk 0:00:20]}  Rxg1+ {[%clk 0:00:03]} 39. Bxg1 {[%clk 0:00:21]}  Kg6 {[%clk 0:00:03]} 40. Rc3 {[%clk 0:00:21]}  Bb6 {[%clk 0:00:03]} 41. Be3 {[%clk 0:00:13]}  Kf5 {[%clk 0:00:03]} 42. Bf2 {[%clk 0:00:14]}  Ke4 {[%clk 0:00:03]} 43. Re3+ {[%clk 0:00:14]}  Kxd4 {[%clk 0:00:01]} 44. Rf3+ {[%clk 0:00:15]}  Kxe5 {[%clk 0:00:02]} 45. Rxf8 {[%clk 0:00:15]} 1-0


[Site "https://www.chess.com"]

[Event "Titled Tuesday Blitz January 04 2022"]
[White "Rychagov, Andrey"]
[Black "Mihok, Oliver"]
[WhiteFideId "4119932"]
[BlackFideId "728012"]
[WhiteElo "2500"]
[BlackElo "2376"]
[Result "0-1"]
[Round "11"]
[TimeControl "180+1"]
[Date "2022.01.04"]
[WhiteClock "0:00:15"]
[BlackClock "0:00:12"]

1. d4 {[%clk 0:02:58]}  Nf6 {[%clk 0:03:00]} 2. c4 {[%clk 0:02:58]}  c5 {[%clk 0:03:00]} 3. d5 {[%clk 0:02:58]}  b5 {[%clk 0:03:01]} 4. cxb5 {[%clk 0:02:58]}  a6 {[%clk 0:03:01]} 5. bxa6 {[%clk 0:02:58]}  g6 {[%clk 0:03:02]} 6. Nc3 {[%clk 0:02:58]}  Bg7 {[%clk 0:03:03]} 7. e4 {[%clk 0:02:59]}  O-O {[%clk 0:03:03]} 8. Be2 {[%clk 0:02:59]}  Qa5 {[%clk 0:03:01]} 9. Bd2 {[%clk 0:02:59]}  Bxa6 {[%clk 0:03:00]} 10. e5 {[%clk 0:02:57]}  Ne8 {[%clk 0:02:55]} 11. Nf3 {[%clk 0:02:57]}  d6 {[%clk 0:02:48]} 12. exd6 {[%clk 0:02:56]}  Nxd6 {[%clk 0:02:48]} 13. O-O {[%clk 0:02:56]}  Nc4 {[%clk 0:02:40]} 14. Bxc4 {[%clk 0:02:52]}  Bxc4 {[%clk 0:02:41]} 15. Re1 {[%clk 0:02:53]}  Qa7 {[%clk 0:02:20]} 16. Bg5 {[%clk 0:02:48]}  e6 {[%clk 0:02:13]} 17. dxe6 {[%clk 0:02:31]}  Bxe6 {[%clk 0:02:12]} 18. Qd2 {[%clk 0:02:32]}  Nc6 {[%clk 0:02:00]} 19. Bh6 {[%clk 0:02:32]}  Rfd8 {[%clk 0:01:59]} 20. Qf4 {[%clk 0:02:31]}  Qb8 {[%clk 0:01:50]} 21. Qh4 {[%clk 0:02:29]}  Qb4 {[%clk 0:01:36]} 22. Ne4 {[%clk 0:02:16]}  Qxb2 {[%clk 0:01:29]} 23. Rab1 {[%clk 0:02:14]}  Qxa2 {[%clk 0:01:13]} 24. Nf6+ {[%clk 0:02:00]}  Kh8 {[%clk 0:01:11]} 25. Bg5 {[%clk 0:01:56]}  h5 {[%clk 0:01:04]} 26. g4 {[%clk 0:01:25]}  Nd4 {[%clk 0:01:02]} 27. Ne5 {[%clk 0:01:18]}  Bxg4 {[%clk 0:00:46]} 28. Nfxg4 {[%clk 0:01:13]}  Re8 {[%clk 0:00:46]} 29. Bf6 {[%clk 0:01:12]}  Re6 {[%clk 0:00:42]} 30. Qg5 {[%clk 0:01:04]}  Kg8 {[%clk 0:00:28]} 31. Bxg7 {[%clk 0:00:53]}  Kxg7 {[%clk 0:00:26]} 32. Qh6+ {[%clk 0:00:53]}  Kg8 {[%clk 0:00:25]} 33. Nd7 {[%clk 0:00:45]}  hxg4 {[%clk 0:00:21]} 34. Rxe6 {[%clk 0:00:36]}  Qxe6 {[%clk 0:00:16]} 35. Nxc5 {[%clk 0:00:34]}  Qd5 {[%clk 0:00:15]} 36. Nb7 {[%clk 0:00:15]}  Re8 {[%clk 0:00:12]} 0-1


[Site "https://www.chess.com"]

[Event "Titled Tuesday Blitz January 04 2022"]
[White "Sadhwani, Raunak"]
[Black "Kravtsiv, Martyn"]
[WhiteFideId "35093487"]
[BlackFideId "14113147"]
[WhiteElo "2616"]
[BlackElo "2694"]
[Result "1-0"]
[Round "11"]
[TimeControl "180+1"]
[Date "2022.01.04"]
[WhiteClock "0:00:55"]
[BlackClock "0:00:24"]

1. e4 {[%clk 0:03:00]}  e5 {[%clk 0:02:59]} 2. Nf3 {[%clk 0:03:01]}  Nc6 {[%clk 0:02:59]} 3. Nc3 {[%clk 0:02:59]}  Nf6 {[%clk 0:02:58]} 4. d4 {[%clk 0:02:59]}  exd4 {[%clk 0:02:58]} 5. Nxd4 {[%clk 0:03:00]}  Bb4 {[%clk 0:02:58]} 6. Nxc6 {[%clk 0:03:00]}  bxc6 {[%clk 0:02:57]} 7. Bd3 {[%clk 0:03:01]}  O-O {[%clk 0:02:57]} 8. O-O {[%clk 0:03:01]}  Re8 {[%clk 0:02:57]} 9. Qf3 {[%clk 0:02:58]}  Rb8 {[%clk 0:02:55]} 10. Bg5 {[%clk 0:02:51]}  Bd6 {[%clk 0:02:50]} 11. Qd1 {[%clk 0:02:14]}  h6 {[%clk 0:02:11]} 12. Bh4 {[%clk 0:02:13]}  Be5 {[%clk 0:01:58]} 13. f4 {[%clk 0:02:13]}  Bd4+ {[%clk 0:01:57]} 14. Kh1 {[%clk 0:02:13]}  d6 {[%clk 0:01:52]} 15. Rb1 {[%clk 0:01:58]}  Bg4 {[%clk 0:01:48]} 16. Bxf6 {[%clk 0:01:52]}  Qd7 {[%clk 0:01:43]} 17. Bxd4 {[%clk 0:01:47]}  Bxd1 {[%clk 0:01:42]} 18. Rfxd1 {[%clk 0:01:42]}  c5 {[%clk 0:01:31]} 19. Bf2 {[%clk 0:01:41]}  Qg4 {[%clk 0:01:28]} 20. Bg3 {[%clk 0:01:39]}  Rb4 {[%clk 0:01:23]} 21. a3 {[%clk 0:01:25]}  Rd4 {[%clk 0:01:23]} 22. Bf2 {[%clk 0:01:12]}  Qxf4 {[%clk 0:01:19]} 23. Bxd4 {[%clk 0:01:12]}  cxd4 {[%clk 0:01:20]} 24. Nd5 {[%clk 0:01:13]}  Qh4 {[%clk 0:01:10]} 25. Nxc7 {[%clk 0:01:12]}  Rxe4 {[%clk 0:01:10]} 26. Bxe4 {[%clk 0:01:11]}  Qxe4 {[%clk 0:01:11]} 27. Nb5 {[%clk 0:01:10]}  Qxc2 {[%clk 0:01:10]} 28. Nxd4 {[%clk 0:01:10]}  Qc5 {[%clk 0:01:04]} 29. Rbc1 {[%clk 0:01:08]}  Qh5 {[%clk 0:01:02]} 30. Nc6 {[%clk 0:01:05]}  Qe2 {[%clk 0:01:00]} 31. b4 {[%clk 0:01:01]}  Qe3 {[%clk 0:00:58]} 32. a4 {[%clk 0:00:58]}  d5 {[%clk 0:00:54]} 33. a5 {[%clk 0:00:57]}  a6 {[%clk 0:00:53]} 34. b5 {[%clk 0:00:57]}  axb5 {[%clk 0:00:33]} 35. a6 {[%clk 0:00:57]}  Kh7 {[%clk 0:00:24]} 36. a7 {[%clk 0:00:57]}  Qe8 {[%clk 0:00:24]} 37. Ra1 {[%clk 0:00:55]} 1-0


[Site "https://www.chess.com"]

[Event "Titled Tuesday Blitz January 04 2022"]
[White "Samadov, Read"]
[Black "Dourerassou, Jonathan"]
[WhiteFideId "13417444"]
[BlackFideId "628050"]
[WhiteElo "2084"]
[BlackElo "2513"]
[Result "1-0"]
[Round "11"]
[TimeControl "180+1"]
[Date "2022.01.04"]
[WhiteClock "0:02:30"]
[BlackClock "0:01:49"]

1. d4 {[%clk 0:03:00]}  d6 {[%clk 0:02:59]} 2. c4 {[%clk 0:03:01]}  g6 {[%clk 0:03:00]} 3. Nc3 {[%clk 0:03:01]}  Bg7 {[%clk 0:03:00]} 4. e4 {[%clk 0:03:01]}  Nf6 {[%clk 0:03:01]} 5. Be2 {[%clk 0:03:01]}  Nbd7 {[%clk 0:03:01]} 6. Be3 {[%clk 0:03:01]}  O-O {[%clk 0:03:02]} 7. Nf3 {[%clk 0:03:02]}  c5 {[%clk 0:03:02]} 8. d5 {[%clk 0:03:01]}  a6 {[%clk 0:03:02]} 9. O-O {[%clk 0:03:01]}  b5 {[%clk 0:02:59]} 10. cxb5 {[%clk 0:03:01]}  axb5 {[%clk 0:03:00]} 11. Bxb5 {[%clk 0:03:01]}  Ba6 {[%clk 0:03:01]} 12. a4 {[%clk 0:03:02]}  Bxb5 {[%clk 0:03:00]} 13. axb5 {[%clk 0:03:03]}  Qb6 {[%clk 0:03:00]} 14. h3 {[%clk 0:03:00]}  Qb7 {[%clk 0:03:00]} 15. Qe2 {[%clk 0:02:59]}  Nb6 {[%clk 0:02:59]} 16. Nd2 {[%clk 0:02:58]}  Nfd7 {[%clk 0:02:57]} 17. Ra6 {[%clk 0:02:58]}  Nb8 {[%clk 0:02:50]} 18. Rxa8 {[%clk 0:02:57]}  Qxa8 {[%clk 0:02:51]} 19. f4 {[%clk 0:02:55]}  N8d7 {[%clk 0:02:51]} 20. Nb3 {[%clk 0:02:50]}  Na4 {[%clk 0:02:48]} 21. Ra1 {[%clk 0:02:46]}  Nxc3 {[%clk 0:02:48]} 22. bxc3 {[%clk 0:02:47]}  Qb7 {[%clk 0:02:43]} 23. Na5 {[%clk 0:02:41]}  Qc7 {[%clk 0:02:38]} 24. Nc6 {[%clk 0:02:38]}  Re8 {[%clk 0:02:17]} 25. Ra7 {[%clk 0:02:37]}  Qc8 {[%clk 0:02:12]} 26. b6 {[%clk 0:02:37]}  Nxb6 {[%clk 0:02:02]} 27. Nxe7+ {[%clk 0:02:38]}  Rxe7 {[%clk 0:02:03]} 28. Rxe7 {[%clk 0:02:38]}  Qa8 {[%clk 0:02:00]} 29. Qb5 {[%clk 0:02:36]}  Bf8 {[%clk 0:01:55]} 30. Re8 {[%clk 0:02:31]}  Qa1+ {[%clk 0:01:49]} 31. Kh2 {[%clk 0:02:31]}  Qxc3 {[%clk 0:01:49]} 32. Qxb6 {[%clk 0:02:29]}  Qxe3 {[%clk 0:01:49]} 33. Qxd6 {[%clk 0:02:30]} 1-0


[Site "https://www.chess.com"]

[Event "Titled Tuesday Blitz January 04 2022"]
[White "Shipov, Sergei"]
[Black "Yaksin, Oleg"]
[WhiteFideId "4113624"]
[BlackFideId "24105880"]
[WhiteElo "2783"]
[BlackElo "2256"]
[Result "1-0"]
[Round "11"]
[TimeControl "180+1"]
[Date "2022.01.04"]
[WhiteClock "0:00:27"]
[BlackClock "0:00:05"]

1. d4 {[%clk 0:03:00]}  Nf6 {[%clk 0:02:59]} 2. c4 {[%clk 0:03:01]}  e6 {[%clk 0:02:59]} 3. Nc3 {[%clk 0:03:01]}  Bb4 {[%clk 0:02:59]} 4. Qc2 {[%clk 0:03:01]}  O-O {[%clk 0:02:59]} 5. a3 {[%clk 0:03:02]}  Bxc3+ {[%clk 0:02:59]} 6. Qxc3 {[%clk 0:03:03]}  d6 {[%clk 0:02:59]} 7. f3 {[%clk 0:03:02]}  Nbd7 {[%clk 0:03:00]} 8. e4 {[%clk 0:03:02]}  c5 {[%clk 0:02:59]} 9. Be3 {[%clk 0:02:54]}  Qe7 {[%clk 0:02:52]} 10. Ne2 {[%clk 0:02:54]}  b6 {[%clk 0:02:48]} 11. Ng3 {[%clk 0:02:43]}  Bb7 {[%clk 0:02:47]} 12. Be2 {[%clk 0:02:42]}  Rac8 {[%clk 0:02:46]} 13. O-O {[%clk 0:02:40]}  cxd4 {[%clk 0:02:21]} 14. Qxd4 {[%clk 0:02:40]}  Rfd8 {[%clk 0:02:08]} 15. Rfd1 {[%clk 0:02:39]}  Nc5 {[%clk 0:02:05]} 16. Rab1 {[%clk 0:02:26]}  d5 {[%clk 0:01:09]} 17. e5 {[%clk 0:01:50]}  Ne8 {[%clk 0:01:08]} 18. cxd5 {[%clk 0:01:35]}  Rxd5 {[%clk 0:01:07]} 19. Qf4 {[%clk 0:01:34]}  Rcd8 {[%clk 0:01:00]} 20. Rxd5 {[%clk 0:00:56]}  Rxd5 {[%clk 0:01:00]} 21. Rd1 {[%clk 0:00:51]}  Rxd1+ {[%clk 0:01:00]} 22. Bxd1 {[%clk 0:00:51]}  Qd7 {[%clk 0:00:30]} 23. Be2 {[%clk 0:00:49]}  Nc7 {[%clk 0:00:21]} 24. Nh5 {[%clk 0:00:47]}  Ne8 {[%clk 0:00:15]} 25. Qd4 {[%clk 0:00:44]}  Qxd4 {[%clk 0:00:14]} 26. Bxd4 {[%clk 0:00:45]}  Nc7 {[%clk 0:00:13]} 27. Nf4 {[%clk 0:00:41]}  Nb3 {[%clk 0:00:12]} 28. Be3 {[%clk 0:00:36]}  Nd5 {[%clk 0:00:13]} 29. Nxd5 {[%clk 0:00:35]}  Bxd5 {[%clk 0:00:14]} 30. Kf2 {[%clk 0:00:35]}  Kf8 {[%clk 0:00:14]} 31. h4 {[%clk 0:00:34]}  Ke7 {[%clk 0:00:14]} 32. h5 {[%clk 0:00:34]}  h6 {[%clk 0:00:13]} 33. g4 {[%clk 0:00:34]}  Kd7 {[%clk 0:00:13]} 34. f4 {[%clk 0:00:34]}  Nc5 {[%clk 0:00:09]} 35. Bd4 {[%clk 0:00:29]}  Kc6 {[%clk 0:00:06]} 36. Ke3 {[%clk 0:00:29]}  a5 {[%clk 0:00:06]} 37. f5 {[%clk 0:00:29]}  Nb3 {[%clk 0:00:05]} 38. Bc3 {[%clk 0:00:28]}  Nc5 {[%clk 0:00:05]} 39. f6 {[%clk 0:00:27]}  gxf6 {[%clk 0:00:05]} 40. exf6 {[%clk 0:00:27]}  Nd7 {[%clk 0:00:04]} 41. g5 {[%clk 0:00:26]}  hxg5 {[%clk 0:00:04]} 42. h6 {[%clk 0:00:27]}  Nf8 {[%clk 0:00:04]} 43. Bd3 {[%clk 0:00:27]}  g4 {[%clk 0:00:05]} 44. Kf4 {[%clk 0:00:27]} 1-0


[Site "https://www.chess.com"]